[Event "Live Chess"]
[Site "Chess.com"]
[Date "2021.02.06"]
[Round "2"]
[White "Rishika8"]
[Black "OlympusMons00"]
[Result "0-1"]
[CurrentPosition "5k2/p4ppp/8/3R4/P4P2/1n1P3P/3r4/1r2KR2 w - -"]
[Timezone "UTC"]
[ECO "C42"]
[ECOUrl "https://www.chess.com/openings/Petrovs-Defense-Three-Knights-Game"]
[UTCDate "2021.02.06"]
[UTCTime "19:01:28"]
[WhiteElo "667"]
[BlackElo "1053"]
[TimeControl "1200+10"]
[Termination "OlympusMons00 won by checkmate"]
[StartTime "19:01:28"]
[EndDate "2021.02.06"]
[EndTime "19:09:47"]
[Link "https://www.chess.com/live/game/6472133577"]

1. e4 {[%clk 0:20:09.7]} 1... e5 {[%clk 0:20:06.9]} 2. Nf3 {[%clk 0:20:19.1]} 2... Nf6 {[%clk 0:20:13.9]} 3. Nc3 {[%clk 0:20:28.4]} 3... Bc5 {[%clk 0:20:17.9]} 4. Bc4 {[%clk 0:20:37.7]} 4... c6 {[%clk 0:20:00.4]} 5. h3 {[%clk 0:20:43.5]} 5... d5 {[%clk 0:20:07.6]} 6. exd5 {[%clk 0:20:47.4]} 6... cxd5 {[%clk 0:20:14.3]} 7. Bb5+ {[%clk 0:20:53.5]} 7... Nc6 {[%clk 0:20:19.4]} 8. Bxc6+ {[%clk 0:21:01.2]} 8... bxc6 {[%clk 0:20:26.5]} 9. Nxe5 {[%clk 0:21:09]} 9... Qe7 {[%clk 0:20:28.7]} 10. f4 {[%clk 0:21:07.9]} 10... Bd4 {[%clk 0:20:30]} 11. Qe2 {[%clk 0:21:07]} 11... Nd7 {[%clk 0:20:18.2]} 12. Nxc6 {[%clk 0:20:57.2]} 12... Qxe2+ {[%clk 0:20:19.7]} 13. Nxe2 {[%clk 0:21:01.9]} 13... Bc5 {[%clk 0:20:26.2]} 14. d3 {[%clk 0:21:00.3]} 14... O-O {[%clk 0:20:31.6]} 15. Bd2 {[%clk 0:21:00.8]} 15... Re8 {[%clk 0:20:33.4]} 16. Rf1 {[%clk 0:20:50.9]} 16... Bb7 {[%clk 0:20:33.8]} 17. Na5 {[%clk 0:20:53.7]} 17... Rab8 {[%clk 0:20:28.9]} 18. b3 {[%clk 0:20:57]} 18... Bd4 {[%clk 0:20:29.1]} 19. O-O-O {[%clk 0:20:44.8]} 19... Rxe2 {[%clk 0:20:34.5]} 20. Bb4 {[%clk 0:20:46.1]} 20... Bc5 {[%clk 0:20:38.8]} 21. Bxc5 {[%clk 0:20:52.1]} 21... Nxc5 {[%clk 0:20:46.2]} 22. Nxb7 {[%clk 0:21:00.9]} 22... Nxb7 {[%clk 0:20:54]} 23. Rf3 {[%clk 0:20:54.2]} 23... Rbe8 {[%clk 0:20:58]} 24. Rff1 {[%clk 0:20:58]} 24... Rxg2 {[%clk 0:21:01]} 25. a4 {[%clk 0:20:58.3]} 25... Ree2 {[%clk 0:21:06.8]} 26. Kb1 {[%clk 0:20:56.5]} 26... Rxc2 {[%clk 0:21:09.8]} 27. Rde1 {[%clk 0:20:56.4]} 27... Kf8 {[%clk 0:21:15]} 28. Re5 {[%clk 0:20:57.8]} 28... Rb2+ {[%clk 0:21:18.8]} 29. Kc1 {[%clk 0:21:00.1]} 29... Nc5 {[%clk 0:21:08.3]} 30. Rxd5 {[%clk 0:21:04.7]} 30... Nxb3+ {[%clk 0:21:14.3]} 31. Kd1 {[%clk 0:21:09.5]} 31... Rgd2+ {[%clk 0:21:21.6]} 32. Ke1 {[%clk 0:21:12.2]} 32... Rb1# {[%clk 0:21:24.9]} 0-1

[Event "Live Chess"]
[Site "Chess.com"]
[Date "2021.02.06"]
[Round "2"]
[White "speedlimit1000"]
[Black "Audi7GSW"]
[Result "1/2-1/2"]
[CurrentPosition "8/8/8/5pk1/6rp/4PKP1/8/6R1 b - -"]
[Timezone "UTC"]
[ECO "C41"]
[ECOUrl "https://www.chess.com/openings/Philidor-Defense-Exchange-Variation-4.Nxd4"]
[UTCDate "2021.02.06"]
[UTCTime "19:01:28"]
[WhiteElo "1430"]
[BlackElo "1243"]
[TimeControl "1200+10"]
[Termination "Game drawn by agreement"]
[StartTime "19:01:28"]
[EndDate "2021.02.06"]
[EndTime "19:18:08"]
[Link "https://www.chess.com/live/game/6472134159"]

1. e4 {[%clk 0:20:09.5]} 1... e5 {[%clk 0:19:55]} 2. Nf3 {[%clk 0:20:10.5]} 2... d6 {[%clk 0:19:59]} 3. d4 {[%clk 0:20:16.7]} 3... exd4 {[%clk 0:19:40.6]} 4. Nxd4 {[%clk 0:20:16.7]} 4... Nc6 {[%clk 0:19:34.7]} 5. Bb5 {[%clk 0:20:03.8]} 5... Bd7 {[%clk 0:19:39.9]} 6. Nxc6 {[%clk 0:20:04.2]} 6... bxc6 {[%clk 0:19:40.4]} 7. Ba6 {[%clk 0:20:06.5]} 7... Bc8 {[%clk 0:19:39.5]} 8. Bxc8 {[%clk 0:19:51.4]} 8... Rxc8 {[%clk 0:19:48.7]} 9. Nc3 {[%clk 0:19:59.1]} 9... Be7 {[%clk 0:19:56.3]} 10. Be3 {[%clk 0:20:06.4]} 10... Nf6 {[%clk 0:19:54.3]} 11. O-O {[%clk 0:19:57.2]} 11... O-O {[%clk 0:19:50.9]} 12. Qd3 {[%clk 0:19:50.4]} 12... d5 {[%clk 0:19:46.5]} 13. exd5 {[%clk 0:19:48.2]} 13... Nxd5 {[%clk 0:19:42.9]} 14. Nxd5 {[%clk 0:19:52.9]} 14... cxd5 {[%clk 0:19:46.7]} 15. Rad1 {[%clk 0:19:54.9]} 15... c6 {[%clk 0:19:50.4]} 16. Rfe1 {[%clk 0:19:49.6]} 16... Ra8 {[%clk 0:19:51.3]} 17. Qe2 {[%clk 0:19:52.7]} 17... Re8 {[%clk 0:19:42.4]} 18. Qf3 {[%clk 0:19:54.1]} 18... Bb4 {[%clk 0:19:47]} 19. c3 {[%clk 0:19:57.9]} 19... Ba5 {[%clk 0:19:32.1]} 20. b4 {[%clk 0:19:54.8]} 20... Bb6 {[%clk 0:19:32.4]} 21. c4 {[%clk 0:19:56.5]} 21... Bxe3 {[%clk 0:19:25.3]} 22. fxe3 {[%clk 0:19:58.9]} 22... a5 {[%clk 0:19:06.8]} 23. cxd5 {[%clk 0:19:52.9]} 23... cxd5 {[%clk 0:18:55.4]} 24. Rxd5 {[%clk 0:19:56.5]} 24... Qc7 {[%clk 0:18:46.3]} 25. bxa5 {[%clk 0:19:43.6]} 25... Rxa5 {[%clk 0:18:44.8]} 26. Rxa5 {[%clk 0:19:46.3]} 26... Qxa5 {[%clk 0:18:54.7]} 27. Rf1 {[%clk 0:19:45.9]} 27... Qxa2 {[%clk 0:18:56.5]} 28. Qc6 {[%clk 0:19:38.1]} 28... Qe6 {[%clk 0:18:47.3]} 29. Qxe6 {[%clk 0:19:40.3]} 29... Rxe6 {[%clk 0:18:52.7]} 30. Rd1 {[%clk 0:19:46.9]} 30... g6 {[%clk 0:18:57.5]} 31. Kf2 {[%clk 0:19:52.9]} 31... Rf6+ {[%clk 0:18:55.1]} 32. Ke2 {[%clk 0:19:58.6]} 32... Rf5 {[%clk 0:18:57.5]} 33. g3 {[%clk 0:19:58]} 33... Rh5 {[%clk 0:18:55.8]} 34. h4 {[%clk 0:20:02.5]} 34... g5 {[%clk 0:19:03.3]} 35. hxg5 {[%clk 0:19:59.5]} 35... Rxg5 {[%clk 0:18:49]} 36. Kf3 {[%clk 0:20:01.2]} 36... Rf5+ {[%clk 0:18:49.8]} 37. Kg4 {[%clk 0:20:07.5]} 37... Re5 {[%clk 0:18:50.5]} 38. Kf4 {[%clk 0:20:15.1]} 38... f6 {[%clk 0:18:57.5]} 39. Rd8+ {[%clk 0:20:17.6]} 39... Kf7 {[%clk 0:19:04.9]} 40. Rd7+ {[%clk 0:20:25.2]} 40... Kg6 {[%clk 0:19:11.5]} 41. Rc7 {[%clk 0:20:26.8]} 41... Rf5+ {[%clk 0:19:11.7]} 42. Ke4 {[%clk 0:20:32.4]} 42... Re5+ {[%clk 0:19:10.9]} 43. Kf4 {[%clk 0:20:39]} 43... Rg5 {[%clk 0:19:10.6]} 44. Rc6 {[%clk 0:20:39.4]} 44... h5 {[%clk 0:19:14.6]} 45. Rc1 {[%clk 0:20:46.6]} 45... Rg4+ {[%clk 0:19:22.6]} 46. Kf3 {[%clk 0:20:54.2]} 46... f5 {[%clk 0:19:22.4]} 47. Rc6+ {[%clk 0:20:59.3]} 47... Kg5 {[%clk 0:19:29.9]} 48. Rc1 {[%clk 0:21:07.4]} 48... h4 {[%clk 0:19:36]} 49. Rg1 {[%clk 0:21:05.2]} 1/2-1/2

[Event "Live Chess"]
[Site "Chess.com"]
[Date "2021.02.06"]
[Round "2"]
[White "RagingLion"]
[Black "hrishikeshbollini"]
[Result "1-0"]
[CurrentPosition "4k1R1/Q4p2/p4R2/3P3K/2P1P3/8/PP6/8 b - -"]
[Timezone "UTC"]
[ECO "C50"]
[ECOUrl "https://www.chess.com/openings/Italian-Game-Hungarian-Defense"]
[UTCDate "2021.02.06"]
[UTCTime "19:01:29"]
[WhiteElo "688"]
[BlackElo "1040"]
[TimeControl "1200+10"]
[Termination "RagingLion won by checkmate"]
[StartTime "19:01:29"]
[EndDate "2021.02.06"]
[EndTime "19:15:33"]
[Link "https://www.chess.com/live/game/6472134696"]

1. e4 {[%clk 0:20:10]} 1... e5 {[%clk 0:19:28.1]} 2. Nf3 {[%clk 0:20:16.3]} 2... Nc6 {[%clk 0:19:34.8]} 3. Bc4 {[%clk 0:20:21.5]} 3... Be7 {[%clk 0:19:42.2]} 4. h4 {[%clk 0:20:24.7]} 4... Nf6 {[%clk 0:19:46.3]} 5. Ng5 {[%clk 0:20:32.3]} 5... O-O {[%clk 0:19:53.7]} 6. Nc3 {[%clk 0:20:33.6]} 6... Bc5 {[%clk 0:19:51.4]} 7. Nf3 {[%clk 0:20:39.4]} 7... d6 {[%clk 0:19:54.6]} 8. O-O {[%clk 0:20:46.9]} 8... Bg4 {[%clk 0:20:01.9]} 9. d3 {[%clk 0:20:52.7]} 9... Nd4 {[%clk 0:20:06.5]} 10. Bg5 {[%clk 0:20:51.7]} 10... Bxf3 {[%clk 0:20:00.8]} 11. gxf3 {[%clk 0:20:34.1]} 11... h6 {[%clk 0:20:01]} 12. Bxf6 {[%clk 0:20:34.7]} 12... Qxf6 {[%clk 0:20:08.8]} 13. Bd5 {[%clk 0:20:34.4]} 13... Nxf3+ {[%clk 0:20:12.8]} 14. Kg2 {[%clk 0:20:40.1]} 14... Nxh4+ {[%clk 0:20:14.6]} 15. Kg3 {[%clk 0:20:48]} 15... Qg5+ {[%clk 0:20:14.5]} 16. Kh3 {[%clk 0:20:53.8]} 16... Rfe8 {[%clk 0:19:55.8]} 17. Bxb7 {[%clk 0:20:50.2]} 17... Rab8 {[%clk 0:20:00]} 18. Rg1 {[%clk 0:20:53]} 18... Qe7 {[%clk 0:19:51.2]} 19. Nd5 {[%clk 0:21:00.7]} 19... Qd7+ {[%clk 0:19:51.5]} 20. Kxh4 {[%clk 0:20:57.9]} 20... Rxb7 {[%clk 0:19:57.6]} 21. Nf6+ {[%clk 0:20:30.1]} 21... Kf8 {[%clk 0:19:51.3]} 22. Nxd7+ {[%clk 0:20:36.1]} 22... Ke7 {[%clk 0:19:55.1]} 23. Nxc5 {[%clk 0:20:43.9]} 23... dxc5 {[%clk 0:20:01.4]} 24. Qh5 {[%clk 0:19:49.7]} 24... g6 {[%clk 0:19:49]} 25. Qxe5+ {[%clk 0:19:57.2]} 25... Kf8 {[%clk 0:19:54.2]} 26. Qxc5+ {[%clk 0:19:58.5]} 26... Re7 {[%clk 0:19:59.9]} 27. Qd5 {[%clk 0:19:51.3]} 27... g5+ {[%clk 0:19:54.9]} 28. Kh5 {[%clk 0:19:58.6]} 28... Rb6 {[%clk 0:19:56.4]} 29. Qd8+ {[%clk 0:19:56.9]} 29... Re8 {[%clk 0:20:01.3]} 30. Qxc7 {[%clk 0:19:56.2]} 30... Re7 {[%clk 0:19:55.4]} 31. Qd8+ {[%clk 0:19:39.1]} 31... Re8 {[%clk 0:20:01.8]} 32. Qd4 {[%clk 0:19:44]} 32... Ra8 {[%clk 0:19:52.2]} 33. Qh8+ {[%clk 0:19:49.8]} 33... Ke7 {[%clk 0:19:57.3]} 34. Qxa8 {[%clk 0:19:57.6]} 34... a6 {[%clk 0:20:01.7]} 35. Qa7+ {[%clk 0:20:02.3]} 35... Kf6 {[%clk 0:20:00.3]} 36. Qxb6+ {[%clk 0:20:10]} 36... Ke5 {[%clk 0:20:09]} 37. Qxh6 {[%clk 0:19:57]} 37... Kf4 {[%clk 0:20:18.7]} 38. Qxg5+ {[%clk 0:20:04.7]} 38... Kf3 {[%clk 0:20:26.6]} 39. Qg4+ {[%clk 0:20:05.9]} 39... Kxf2 {[%clk 0:20:34.9]} 40. Raf1+ {[%clk 0:20:03.9]} 40... Ke3 {[%clk 0:20:43.3]} 41. Qf3+ {[%clk 0:20:05.6]} 41... Kd4 {[%clk 0:20:49]} 42. c3+ {[%clk 0:20:14.4]} 42... Kc5 {[%clk 0:20:55.9]} 43. Qe3+ {[%clk 0:20:23.1]} 43... Kd6 {[%clk 0:21:03.6]} 44. c4 {[%clk 0:20:31.3]} 44... Kc6 {[%clk 0:21:09.5]} 45. d4 {[%clk 0:20:36]} 45... Kd6 {[%clk 0:21:15.4]} 46. Rf6+ {[%clk 0:20:42.2]} 46... Kc7 {[%clk 0:21:22.6]} 47. d5 {[%clk 0:20:47.2]} 47... Kd7 {[%clk 0:21:29.9]} 48. Qa7+ {[%clk 0:20:45.9]} 48... Ke8 {[%clk 0:21:36.5]} 49. Rg8# {[%clk 0:20:53.9]} 1-0

[Event "Live Chess"]
[Site "Chess.com"]
[Date "2021.02.06"]
[Round "2"]
[White "SriAnshDumpala"]
[Black "ArnavRavi3"]
[Result "0-1"]
[CurrentPosition "8/pp3kp1/8/2p1B2p/5K2/6P1/r6r/8 b - -"]
[Timezone "UTC"]
[ECO "C54"]
[ECOUrl "https://www.chess.com/openings/Giuoco-Piano-Game-Center-Attack-5...exd4-6.cxd4"]
[UTCDate "2021.02.06"]
[UTCTime "19:01:40"]
[WhiteElo "879"]
[BlackElo "1030"]
[TimeControl "1200+10"]
[Termination "ArnavRavi3 won by resignation"]
[StartTime "19:01:40"]
[EndDate "2021.02.06"]
[EndTime "19:08:21"]
[Link "https://www.chess.com/live/game/6472135338"]

1. e4 {[%clk 0:20:09.2]} 1... e5 {[%clk 0:20:08.6]} 2. Nf3 {[%clk 0:20:17.7]} 2... Nc6 {[%clk 0:20:16.8]} 3. Bc4 {[%clk 0:20:25.7]} 3... Bc5 {[%clk 0:20:24]} 4. c3 {[%clk 0:20:33.2]} 4... Nf6 {[%clk 0:20:29]} 5. d4 {[%clk 0:20:37]} 5... exd4 {[%clk 0:20:36.6]} 6. cxd4 {[%clk 0:20:45.1]} 6... Nxd4 {[%clk 0:20:44]} 7. Nxd4 {[%clk 0:20:52.8]} 7... d5 {[%clk 0:20:52.9]} 8. exd5 {[%clk 0:20:58.2]} 8... Nxd5 {[%clk 0:20:59.4]} 9. Bd2 {[%clk 0:20:44.6]} 9... Bxd4 {[%clk 0:21:00.1]} 10. Bxd5 {[%clk 0:20:51.8]} 10... Bxb2 {[%clk 0:21:06.9]} 11. Bc3 {[%clk 0:20:43.9]} 11... Bxa1 {[%clk 0:21:06]} 12. Bxa1 {[%clk 0:20:51]} 12... Bf5 {[%clk 0:21:05.4]} 13. Bxf7+ {[%clk 0:20:58.7]} 13... Kxf7 {[%clk 0:20:58.6]} 14. Nc3 {[%clk 0:21:01.6]} 14... Re8+ {[%clk 0:20:54.6]} 15. Kf1 {[%clk 0:21:07.5]} 15... Bd3+ {[%clk 0:20:53.4]} 16. Kg1 {[%clk 0:21:12.2]} 16... Re7 {[%clk 0:20:46.3]} 17. g3 {[%clk 0:21:20.6]} 17... Be4 {[%clk 0:20:47.3]} 18. f3 {[%clk 0:21:19.6]} 18... Qxd1+ {[%clk 0:20:46.2]} 19. Nxd1 {[%clk 0:21:26.6]} 19... Bxf3 {[%clk 0:20:55.2]} 20. Nf2 {[%clk 0:21:28.8]} 20... Bxh1 {[%clk 0:21:02.8]} 21. Kxh1 {[%clk 0:21:36.8]} 21... Rd8 {[%clk 0:21:05.6]} 22. Kg2 {[%clk 0:21:44.9]} 22... Re2 {[%clk 0:21:07.9]} 23. Bc3 {[%clk 0:21:45.4]} 23... c5 {[%clk 0:20:58.4]} 24. Kh3 {[%clk 0:21:52.4]} 24... Rxf2 {[%clk 0:21:06.1]} 25. Ba5 {[%clk 0:21:50.4]} 25... Rdd2 {[%clk 0:21:02.6]} 26. Bc3 {[%clk 0:21:52.4]} 26... Rxh2+ {[%clk 0:21:08.1]} 27. Kg4 {[%clk 0:21:59.1]} 27... h5+ {[%clk 0:21:10.2]} 28. Kf4 {[%clk 0:22:03.5]} 28... Rxa2 {[%clk 0:21:05.5]} 29. Be5 {[%clk 0:22:03.4]} 0-1

[Event "Live Chess"]
[Site "Chess.com"]
[Date "2021.02.06"]
[Round "2"]
[White "kombat-khushi"]
[Black "shasasha"]
[Result "0-1"]
[CurrentPosition "2kr1bnr/ppp4p/3p2p1/1b2p3/1B2P2p/2P2R2/P2P1P2/nN1K2q1 w - -"]
[Timezone "UTC"]
[ECO "C24"]
[ECOUrl "https://www.chess.com/openings/Bishops-Opening-Berlin-Defense"]
[UTCDate "2021.02.06"]
[UTCTime "19:01:48"]
[WhiteElo "422"]
[BlackElo "797"]
[TimeControl "1200+10"]
[Termination "shasasha won by checkmate"]
[StartTime "19:01:48"]
[EndDate "2021.02.06"]
[EndTime "19:10:56"]
[Link "https://www.chess.com/live/game/6472136144"]

1. e4 {[%clk 0:20:07.2]} 1... e5 {[%clk 0:20:08.5]} 2. Bc4 {[%clk 0:20:14.1]} 2... Nf6 {[%clk 0:20:16]} 3. Qf3 {[%clk 0:20:17.1]} 3... Qe7 {[%clk 0:20:17.8]} 4. g4 {[%clk 0:20:21.5]} 4... Nc6 {[%clk 0:20:16.9]} 5. g5 {[%clk 0:20:26.5]} 5... Na5 {[%clk 0:20:23.2]} 6. Bd3 {[%clk 0:20:17]} 6... Ng8 {[%clk 0:20:20.3]} 7. b4 {[%clk 0:20:22.8]} 7... Nc6 {[%clk 0:20:20.4]} 8. Bc4 {[%clk 0:20:28.2]} 8... f6 {[%clk 0:20:18.2]} 9. Ba3 {[%clk 0:20:22.3]} 9... d6 {[%clk 0:20:17.3]} 10. b5 {[%clk 0:20:26.5]} 10... Na5 {[%clk 0:20:20.7]} 11. Qh5+ {[%clk 0:20:06.5]} 11... g6 {[%clk 0:20:07.6]} 12. Qd1 {[%clk 0:19:01.7]} 12... Nxc4 {[%clk 0:20:10.3]} 13. Bc1 {[%clk 0:18:53.6]} 13... Bd7 {[%clk 0:20:07]} 14. c3 {[%clk 0:18:57.8]} 14... Bxb5 {[%clk 0:20:11.6]} 15. Qe2 {[%clk 0:18:54.7]} 15... Na3 {[%clk 0:19:53.3]} 16. Qe3 {[%clk 0:18:55.5]} 16... Nc2+ {[%clk 0:19:55.4]} 17. Kd1 {[%clk 0:18:59.3]} 17... Nxe3+ {[%clk 0:20:01.5]} 18. Ke1 {[%clk 0:18:50.3]} 18... Nc2+ {[%clk 0:20:07.4]} 19. Kd1 {[%clk 0:18:56.5]} 19... Nxa1 {[%clk 0:20:13.9]} 20. h4 {[%clk 0:18:58.9]} 20... fxg5 {[%clk 0:20:18]} 21. Rh3 {[%clk 0:18:52.2]} 21... gxh4 {[%clk 0:20:21.5]} 22. Rf3 {[%clk 0:18:55.3]} 22... O-O-O {[%clk 0:20:20.5]} 23. Ba3 {[%clk 0:18:45.4]} 23... Qg5 {[%clk 0:20:16.5]} 24. Bb4 {[%clk 0:18:49.7]} 24... Qxg1# {[%clk 0:20:15.1]} 0-1

[Event "Live Chess"]
[Site "Chess.com"]
[Date "2021.02.06"]
[Round "2"]
[White "chessaryaman"]
[Black "Saif_Chess"]
[Result "1-0"]
[CurrentPosition "8/7R/p7/6Q1/4P3/3p1P1k/P1P5/5K2 b - -"]
[Timezone "UTC"]
[ECO "B20"]
[ECOUrl "https://www.chess.com/openings/Sicilian-Defense-Bowdler-Attack"]
[UTCDate "2021.02.06"]
[UTCTime "19:01:51"]
[WhiteElo "867"]
[BlackElo "895"]
[TimeControl "1200+10"]
[Termination "chessaryaman won by checkmate"]
[StartTime "19:01:51"]
[EndDate "2021.02.06"]
[EndTime "19:12:05"]
[Link "https://www.chess.com/live/game/6472136784"]

1. e4 {[%clk 0:20:08.6]} 1... c5 {[%clk 0:20:09]} 2. Bc4 {[%clk 0:20:17.2]} 2... Nf6 {[%clk 0:20:14]} 3. Nc3 {[%clk 0:20:25.1]} 3... Nc6 {[%clk 0:20:18.1]} 4. Na4 {[%clk 0:20:25.8]} 4... b6 {[%clk 0:20:21.5]} 5. d3 {[%clk 0:20:22.1]} 5... Bb7 {[%clk 0:20:28.5]} 6. Bg5 {[%clk 0:20:26.1]} 6... e5 {[%clk 0:20:31.2]} 7. Bxf6 {[%clk 0:20:33.8]} 7... Qxf6 {[%clk 0:20:40.7]} 8. Nf3 {[%clk 0:20:42.2]} 8... Bd6 {[%clk 0:20:41.8]} 9. Nc3 {[%clk 0:20:45.8]} 9... Nd4 {[%clk 0:20:42.2]} 10. Bd5 {[%clk 0:20:44.7]} 10... Bxd5 {[%clk 0:20:47.9]} 11. Nxd5 {[%clk 0:20:51.5]} 11... Qe6 {[%clk 0:20:42.3]} 12. Ng5 {[%clk 0:20:57.3]} 12... Qg6 {[%clk 0:20:31.9]} 13. h4 {[%clk 0:20:53.7]} 13... O-O {[%clk 0:20:38.3]} 14. b4 {[%clk 0:20:50.1]} 14... h6 {[%clk 0:20:31.2]} 15. bxc5 {[%clk 0:20:53]} 15... bxc5 {[%clk 0:20:36.7]} 16. Rb1 {[%clk 0:20:25.6]} 16... f6 {[%clk 0:19:35.8]} 17. Rb7 {[%clk 0:20:31.8]} 17... fxg5 {[%clk 0:19:41.6]} 18. Rxd7 {[%clk 0:20:40.5]} 18... Bb8 {[%clk 0:19:41.5]} 19. Ne7+ {[%clk 0:20:48.7]} 19... Kf7 {[%clk 0:19:40.9]} 20. Nxg6+ {[%clk 0:20:56.5]} 20... Kxg6 {[%clk 0:19:50.8]} 21. Qb1 {[%clk 0:20:49.1]} 21... Rf6 {[%clk 0:19:46.7]} 22. Qb7 {[%clk 0:20:47.4]} 22... Ne6 {[%clk 0:19:49.3]} 23. Qxa8 {[%clk 0:20:50.3]} 23... Nf4 {[%clk 0:19:44.5]} 24. Qxb8 {[%clk 0:20:53.1]} 24... Nxg2+ {[%clk 0:19:35.3]} 25. Kf1 {[%clk 0:20:58.8]} 25... Nxh4 {[%clk 0:19:42.6]} 26. Qe8+ {[%clk 0:21:05.2]} 26... Kh7 {[%clk 0:19:45.9]} 27. Qxe5 {[%clk 0:21:10.3]} 27... a6 {[%clk 0:19:21.2]} 28. Qe7 {[%clk 0:21:15.6]} 28... Kg6 {[%clk 0:19:28.2]} 29. Qxg7+ {[%clk 0:21:20.3]} 29... Kh5 {[%clk 0:19:33.2]} 30. Qxf6 {[%clk 0:21:28.6]} 30... c4 {[%clk 0:19:37.3]} 31. Rxh4+ {[%clk 0:21:30.5]} 31... Kxh4 {[%clk 0:19:42.3]} 32. Qxh6+ {[%clk 0:21:26]} 32... Kg4 {[%clk 0:19:48.6]} 33. Rf7 {[%clk 0:21:29.9]} 33... cxd3 {[%clk 0:19:51.9]} 34. f3+ {[%clk 0:21:38.3]} 34... Kg3 {[%clk 0:19:58.9]} 35. Qxg5+ {[%clk 0:21:44.6]} 35... Kh3 {[%clk 0:20:00.3]} 36. Rh7# {[%clk 0:21:53.8]} 1-0

[Event "Live Chess"]
[Site "Chess.com"]
[Date "2021.02.06"]
[Round "2"]
[White "Ekam_Dublin"]
[Black "SuperRockstar"]
[Result "0-1"]
[CurrentPosition "Q7/8/8/R1P2p2/1P6/4k3/8/1r2K3 w - -"]
[Timezone "UTC"]
[ECO "C26"]
[ECOUrl "https://www.chess.com/openings/Vienna-Game-Falkbeer-Stanley-Variation"]
[UTCDate "2021.02.06"]
[UTCTime "19:01:45"]
[WhiteElo "1015"]
[BlackElo "845"]
[TimeControl "1200+10"]
[Termination "SuperRockstar won by checkmate"]
[StartTime "19:01:45"]
[EndDate "2021.02.06"]
[EndTime "19:15:38"]
[Link "https://www.chess.com/live/game/6472137551"]

1. e4 {[%clk 0:20:09.3]} 1... e5 {[%clk 0:20:06.4]} 2. Bc4 {[%clk 0:20:17.1]} 2... Nf6 {[%clk 0:20:13.2]} 3. Nc3 {[%clk 0:20:24.9]} 3... Nc6 {[%clk 0:20:18]} 4. Nf3 {[%clk 0:20:30.5]} 4... h6 {[%clk 0:20:22.8]} 5. h3 {[%clk 0:20:38.7]} 5... Bb4 {[%clk 0:20:30.6]} 6. a3 {[%clk 0:20:44.2]} 6... Bxc3 {[%clk 0:20:37.9]} 7. dxc3 {[%clk 0:20:52.5]} 7... O-O {[%clk 0:20:44.6]} 8. O-O {[%clk 0:21:01]} 8... d6 {[%clk 0:20:48.9]} 9. Re1 {[%clk 0:21:08.7]} 9... Re8 {[%clk 0:20:57.3]} 10. b4 {[%clk 0:21:06.6]} 10... a6 {[%clk 0:20:43.5]} 11. Bb3 {[%clk 0:21:11.9]} 11... Be6 {[%clk 0:20:29.4]} 12. c4 {[%clk 0:20:44.2]} 12... b5 {[%clk 0:20:30.5]} 13. c5 {[%clk 0:20:48.6]} 13... Bxb3 {[%clk 0:20:34.6]} 14. cxb3 {[%clk 0:20:56.9]} 14... dxc5 {[%clk 0:20:41.6]} 15. bxc5 {[%clk 0:21:05.5]} 15... Qxd1 {[%clk 0:20:48.7]} 16. Rxd1 {[%clk 0:21:14.1]} 16... Rad8 {[%clk 0:20:51.5]} 17. Rxd8 {[%clk 0:21:19.6]} 17... Rxd8 {[%clk 0:21:00.3]} 18. Bb2 {[%clk 0:21:28]} 18... Re8 {[%clk 0:21:02.6]} 19. b4 {[%clk 0:21:35.8]} 19... Nxe4 {[%clk 0:20:52.7]} 20. Re1 {[%clk 0:21:40.9]} 20... Nf6 {[%clk 0:20:48.4]} 21. Kf1 {[%clk 0:21:36.9]} 21... Re6 {[%clk 0:20:35.9]} 22. Nxe5 {[%clk 0:21:39.6]} 22... g5 {[%clk 0:20:00.4]} 23. Nxc6 {[%clk 0:21:44.4]} 23... Rxc6 {[%clk 0:20:07.2]} 24. Re3 {[%clk 0:21:42.2]} 24... Nd5 {[%clk 0:19:38.7]} 25. Re8+ {[%clk 0:21:45]} 25... Kh7 {[%clk 0:19:46.5]} 26. Rh8+ {[%clk 0:21:53.5]} 26... Kg6 {[%clk 0:19:51.7]} 27. Rg8+ {[%clk 0:22:01.3]} 27... Kh7 {[%clk 0:19:58.1]} 28. Rh8+ {[%clk 0:22:09.8]} 28... Kg6 {[%clk 0:20:06.9]} 29. Re8 {[%clk 0:22:12.3]} 29... Re6 {[%clk 0:19:57.4]} 30. Rd8 {[%clk 0:22:04.7]} 30... Nf4 {[%clk 0:19:54.8]} 31. Rd2 {[%clk 0:21:51.1]} 31... f5 {[%clk 0:19:49.1]} 32. Rd7 {[%clk 0:21:53]} 32... c6 {[%clk 0:19:40]} 33. Rd6 {[%clk 0:21:38.3]} 33... Kf7 {[%clk 0:19:33.3]} 34. Rd7+ {[%clk 0:21:40.6]} 34... Kg6 {[%clk 0:19:35.7]} 35. Ra7 {[%clk 0:21:48.3]} 35... Re2 {[%clk 0:19:36.7]} 36. Bc1 {[%clk 0:21:41.3]} 36... Rc2 {[%clk 0:19:12]} 37. Bxf4 {[%clk 0:21:47.9]} 37... gxf4 {[%clk 0:19:17.5]} 38. Rxa6 {[%clk 0:21:55.1]} 38... Kg5 {[%clk 0:19:19.3]} 39. Rxc6 {[%clk 0:22:02.6]} 39... Kh4 {[%clk 0:19:08.5]} 40. Rxh6+ {[%clk 0:22:08.6]} 40... Kg5 {[%clk 0:19:13.7]} 41. Rb6 {[%clk 0:22:11.6]} 41... Kh4 {[%clk 0:19:19.4]} 42. Rxb5 {[%clk 0:22:18.9]} 42... f3 {[%clk 0:19:22.7]} 43. gxf3 {[%clk 0:22:26.6]} 43... Kxh3 {[%clk 0:19:29.6]} 44. Ke1 {[%clk 0:22:28.9]} 44... Kg2 {[%clk 0:19:26]} 45. a4 {[%clk 0:22:34]} 45... Kxf3 {[%clk 0:19:34.3]} 46. a5 {[%clk 0:22:41.8]} 46... Rxf2 {[%clk 0:19:36.4]} 47. a6 {[%clk 0:22:50.6]} 47... Ra2 {[%clk 0:19:41]} 48. Ra5 {[%clk 0:22:56.9]} 48... Rb2 {[%clk 0:19:42.6]} 49. a7 {[%clk 0:23:05.5]} 49... Ke3 {[%clk 0:19:51]} 50. a8=Q {[%clk 0:23:13.8]} 50... Rb1# {[%clk 0:19:58.3]} 0-1